Workbook

Sheet Navigation
K7: Sunil Krishi Kendra
L8: Stock and Sales FOR THE PERIOD 01-Apr-2021 TO 31-Jul-2021

Sheet Dealer Report
A1: Sunil Krishi Kendra
A2: Village Suwartala Block-Saza
A3: District - Bemetara
A4: BAYER CROP SCIENCE
A5: Stock Category Summary
A6: 1-Apr-2021 to 31-Jul-2021
B7: BAYER CROP SCIENCE
B8: Sunil Krishi Kendra - (from 1-Apr-2020)
A9: Particulars | B9: 1-Apr-2021 to 31-Jul-2021
B10: Opening Balance | C10: Inwards | D10: Outwards | E10: Closing Balance
B11: Quantity | C11: Quantity | D11: Quantity | E11: Quantity | G11: sapl sale | H11: status | I11: sapl pur | J11: status | K11: clsoig sapl | L11: stauts
A12: ADMIRE WG70 125X(8X2)GR | C12: 2 | E12: 2 | F12: =TRIM(A12) -> ADMIRE WG70 125X(8X2)GR | G12: =IFERROR(VLOOKUP(F12,'[2]pivot sale'!$E$4:$F$13,2,0),0) -> 0 | H12: =G12=D12 -> TRUE | I12: =IFERROR(VLOOKUP(F12,'[2]pivot pur'!$E$4:$F$27,2,0),0) -> 2 | J12: =I12=C12 -> TRUE | K12: =B12+I12-G12 -> 2 | L12: =K12=E12 -> TRUE
A13: ADORA 20X200 ML | B13: -43 | C13: 20 | E13: -23 | F13: =TRIM(A13) -> ADORA 20X200 ML | G13: =IFERROR(VLOOKUP(F13,'[2]pivot sale'!$E$4:$F$13,2,0),0) -> 0 | H13: =G13=D13 -> TRUE | I13: =IFERROR(VLOOKUP(F13,'[2]pivot pur'!$E$4:$F$27,2,0),0) -> 20 | J13: =I13=C13 -> TRUE | K13: =B13+I13-G13 -> -23 | L13: =K13=E13 -> TRUE
A14: ADORA 4X1 LTR | B14: -20 | C14: 8 | E14: -12 | F14: ADORA 4X1 LTR | G14: =IFERROR(VLOOKUP(F14,'[2]pivot sale'!$E$4:$F$13,2,0),0) -> 0 | H14: TRUE | I14: =IFERROR(VLOOKUP(F14,'[2]pivot pur'!$E$4:$F$27,2,0),0) -> 8 | J14: TRUE | K14: -12 | L14: TRUE
A15: ADORA 50X100 ML | B15: -46 | C15: 10 | E15: -36 | F15: ADORA 50X100 ML | G15: =IFERROR(VLOOKUP(F15,'[2]pivot sale'!$E$4:$F$13,2,0),0) -> 0 | H15: TRUE | I15: =IFERROR(VLOOKUP(F15,'[2]pivot pur'!$E$4:$F$27,2,0),0) -> 10 | J15: TRUE | K15: -36 | L15: TRUE
A16: ADORA 8X500 ML | B16: -13 | C16: 20 | E16: 7 | F16: ADORA 8X500 ML | G16: =IFERROR(VLOOKUP(F16,'[2]pivot sale'!$E$4:$F$13,2,0),0) -> 0 | H16: TRUE | I16: =IFERROR(VLOOKUP(F16,'[2]pivot pur'!$E$4:$F$27,2,0),0) -> 20 | J16: TRUE | K16: 7 | L16: TRUE
A17: ALIETTE 40X100GR | C17: 4 | E17: 4 | F17: ALIETTE 40X100GR | G17: =IFERROR(VLOOKUP(F17,'[2]pivot sale'!$E$4:$F$13,2,0),0) -> 0 | H17: TRUE | I17: =IFERROR(VLOOKUP(F17,'[2]pivot pur'!$E$4:$F$27,2,0),0) -> 4 | J17: TRUE | K17: 4 | L17: TRUE
A18: ANTRACOL 10X1 KG | B18: 255 | C18: 250 | D18: 14 | E18: 491 | F18: ANTRACOL 10X1 KG | G18: =IFERROR(VLOOKUP(F18,'[2]pivot sale'!$E$4:$F$13,2,0),0) -> 14 | H18: TRUE | I18: =IFERROR(VLOOKUP(F18,'[2]pivot pur'!$E$4:$F$27,2,0),0) -> 250 | J18: TRUE | K18: 491 | L18: TRUE
A19: ANTRACOL 40X250 GR | B19: 156 | C19: 250 | E19: 406 | F19: ANTRACOL 40X250 GR | G19: =IFERROR(VLOOKUP(F19,'[2]pivot sale'!$E$4:$F$13,2,0),0) -> 0 | H19: TRUE | I19: =IFERROR(VLOOKUP(F19,'[2]pivot pur'!$E$4:$F$27,2,0),0) -> 250 | J19: TRUE | K19: 406 | L19: TRUE
A20: ANTRACOL WP 70 20X500GM | B20: 520 | C20: 300 | D20: 15 | E20: 805 | F20: ANTRACOL WP 70 20X500GM | G20: =IFERROR(VLOOKUP(F20,'[2]pivot sale'!$E$4:$F$13,2,0),0) -> 15 | H20: TRUE | I20: =IFERROR(VLOOKUP(F20,'[2]pivot pur'!$E$4:$F$27,2,0),0) -> 300 | J20: TRUE | K20: 805 | L20: TRUE
A21: ARIZE 6444 GOLD 10X3 KG | C21: 4500 | D21: 4152.5 | E21: 347.5 | F21: ARIZE 6444 GOLD 10X3 KG | G21: =IFERROR(VLOOKUP(F21,'[2]pivot sale'!$E$4:$F$13,2,0),0) -> 4152.5 | H21: TRUE | I21: =IFERROR(VLOOKUP(F21,'[2]pivot pur'!$E$4:$F$27,2,0),0) -> 4500 | J21: TRUE | K21: 347.5 | L21: TRUE
A22: ARIZE AZ 8433 10X3 KG | B22: -300 | C22: 6420 | D22: 3875 | E22: 2245 | F22: ARIZE AZ 8433 10X3 KG | G22: =IFERROR(VLOOKUP(F22,'[2]pivot sale'!$E$4:$F$13,2,0),0) -> 3875 | H22: TRUE | I22: =IFERROR(VLOOKUP(F22,'[2]pivot pur'!$E$4:$F$27,2,0),0) -> 6420 | J22: TRUE | K22: 2245 | L22: TRUE
A23: ARIZE AZ 8433 6X5 KG | C23: 300 | E23: 300 | F23: ARIZE AZ 8433 6X5 KG | G23: =IFERROR(VLOOKUP(F23,'[2]pivot sale'!$E$4:$F$13,2,0),0) -> 0 | H23: TRUE | I23: =IFERROR(VLOOKUP(F23,'[2]pivot pur'!$E$4:$F$27,2,0),0) -> 300 | J23: TRUE | K23: 300 | L23: TRUE
A24: DECIS 40X250ML | C24: 20 | E24: 20 | F24: DECIS 40X250ML | G24: =IFERROR(VLOOKUP(F24,'[2]pivot sale'!$E$4:$F$13,2,0),0) -> 0 | H24: TRUE | I24: =IFERROR(VLOOKUP(F24,'[2]pivot pur'!$E$4:$F$27,2,0),0) -> 20 | J24: TRUE | K24: 20 | L24: TRUE
A25: DECIS 50X100ML | C25: 10 | E25: 10 | F25: DECIS 50X100ML | G25: =IFERROR(VLOOKUP(F25,'[2]pivot sale'!$E$4:$F$13,2,0),0) -> 0 | H25: TRUE | I25: =IFERROR(VLOOKUP(F25,'[2]pivot pur'!$E$4:$F$27,2,0),0) -> 10 | J25: TRUE | K25: 10 | L25: TRUE
A26: GAUCHO 50X100ML | C26: 5 | D26: 5 | F26: GAUCHO 50X100ML | G26: =IFERROR(VLOOKUP(F26,'[2]pivot sale'!$E$4:$F$13,2,0),0) -> 5 | H26: TRUE | I26: =IFERROR(VLOOKUP(F26,'[2]pivot pur'!$E$4:$F$27,2,0),0) -> 5 | J26: TRUE | K26: 0 | L26: TRUE
A27: GAUCHO FS600 100X50ML | C27: 15 | D27: 15 | F27: GAUCHO FS600 100X50ML | G27: =IFERROR(VLOOKUP(F27,'[2]pivot sale'!$E$4:$F$13,2,0),0) -> 15 | H27: TRUE | I27: =IFERROR(VLOOKUP(F27,'[2]pivot pur'!$E$4:$F$27,2,0),0) -> 15 | J27: TRUE | K27: 0 | L27: TRUE
A28: LARVIN 20X500 ML | C28: 20 | E28: 20 | F28: LARVIN 20X500 ML | G28: =IFERROR(VLOOKUP(F28,'[2]pivot sale'!$E$4:$F$13,2,0),0) -> 0 | H28: TRUE | I28: =IFERROR(VLOOKUP(F28,'[2]pivot pur'!$E$4:$F$27,2,0),0) -> 20 | J28: TRUE | K28: 20 | L28: TRUE
A29: LARVIN WP75 20X250 GR | C29: 25 | E29: 25 | F29: LARVIN WP75 20X250 GR | G29: =IFERROR(VLOOKUP(F29,'[2]pivot sale'!$E$4:$F$13,2,0),0) -> 0 | H29: TRUE | I29: =IFERROR(VLOOKUP(F29,'[2]pivot pur'!$E$4:$F$27,2,0),0) -> 25 | J29: TRUE | K29: 25 | L29: TRUE
A30: NATIVO 100X50 BAG | F30: NATIVO 100X50 BAG | G30: =IFERROR(VLOOKUP(F30,'[2]pivot sale'!$E$4:$F$13,2,0),0) -> 0 | H30: TRUE | I30: =IFERROR(VLOOKUP(F30,'[2]pivot pur'!$E$4:$F$27,2,0),0) -> 0 | J30: TRUE | K30: 0 | L30: TRUE
A31: REGENT SC50 20X250ML | B31: 5 | C31: 5 | D31: 5 | E31: 5 | F31: REGENT SC50 20X250ML | G31: =IFERROR(VLOOKUP(F31,'[2]pivot sale'!$E$4:$F$13,2,0),0) -> 5 | H31: TRUE | I31: =IFERROR(VLOOKUP(F31,'[2]pivot pur'!$E$4:$F$27,2,0),0) -> 5 | J31: TRUE | K31: 5 | L31: TRUE
A32: REGENT SC 50X100 ML | B32: 1 | C32: 10 | D32: 1 | E32: 10 | F32: REGENT SC 50X100 ML | G32: =IFERROR(VLOOKUP(F32,'[2]pivot sale'!$E$4:$F$13,2,0),0) -> 1 | H32: TRUE | I32: =IFERROR(VLOOKUP(F32,'[2]pivot pur'!$E$4:$F$27,2,0),0) -> 10 | J32: TRUE | K32: 10 | L32: TRUE
A33: WHIPSUPER 10X1 LTR | B33: 2 | C33: 200 | D33: 2 | E33: 200 | F33: WHIPSUPER 10X1 LTR | G33: =IFERROR(VLOOKUP(F33,'[2]pivot sale'!$E$4:$F$13,2,0),0) -> 2 | H33: TRUE | I33: =IFERROR(VLOOKUP(F33,'[2]pivot pur'!$E$4:$F$27,2,0),0) -> 200 | J33: TRUE | K33: 200 | L33: TRUE
A34: WHIPSUPER 20X500 ML | B34: -17 | C34: 150 | E34: 133 | F34: WHIPSUPER 20X500 ML | G34: =IFERROR(VLOOKUP(F34,'[2]pivot sale'!$E$4:$F$13,2,0),0) -> 0 | H34: TRUE | I34: =IFERROR(VLOOKUP(F34,'[2]pivot pur'!$E$4:$F$27,2,0),0) -> 150 | J34: TRUE | K34: 133 | L34: TRUE
A35: WHIPSUPER 50X100 ML | C35: 25 | E35: 25 | F35: WHIPSUPER 50X100 ML | G35: =IFERROR(VLOOKUP(F35,'[2]pivot sale'!$E$4:$F$13,2,0),0) -> 0 | H35: TRUE | I35: =IFERROR(VLOOKUP(F35,'[2]pivot pur'!$E$4:$F$27,2,0),0) -> 25 | J35: TRUE | K35: 25 | L35: TRUE
A36: WHIPSUPER T EC90 40X250ML | B36: 30 | C36: 20 | D36: 30 | E36: 20 | F36: WHIPSUPER T EC90 40X250ML | G36: =IFERROR(VLOOKUP(F36,'[2]pivot sale'!$E$4:$F$13,2,0),0) -> 30 | H36: TRUE | I36: =IFERROR(VLOOKUP(F36,'[2]pivot pur'!$E$4:$F$27,2,0),0) -> 20 | J36: TRUE | K36: 20 | L36: TRUE
A37: Grand Total | F37: Grand Total | G37: =IFERROR(VLOOKUP(F37,'[2]pivot sale'!$E$4:$F$13,2,0),0) -> 0 | H37: TRUE | J37: TRUE | K37: 0 | L37: TRUE

Sheet Dealer Report working
A1: Particulars | B1: Opening Qty | C1: Purchase Qty | D1: Sales Qty | E1: CLSG | F1: Master Name | K1: Values
A2: ADMIRE WG70 125X(8X2)GR | C2: 2 | E2: 2 | F2: ADMIRE WG70 125X(8X2GR) BAG IN | J2: Row Labels | K2: Sum of Opening Qty | L2: Sum of Purchase Qty | M2: Sum of Sales Qty | N2: Sum of CLSG
A3: ADORA 20X200 ML | B3: -43 | C3: 20 | E3: -23 | F3: ADORA (T) SC100 20X200ML BOT IN | J3: ADMIRE WG70 125X(8X2GR) BAG IN | L3: 2 | N3: 2
A4: ADORA 4X1 LTR | B4: -20 | C4: 8 | E4: -12 | F4: ADORA (T) SC100 4X1L BOT IN | J4: ADORA (T) SC100 20X200ML BOT IN | K4: -43 | L4: 20 | N4: -23
A5: ADORA 50X100 ML | B5: -46 | C5: 10 | E5: -36 | F5: ADORA (T) SC100 50X100ML BOT IN | J5: ADORA (T) SC100 4X1L BOT IN | K5: -20 | L5: 8 | N5: -12
A6: ADORA 8X500 ML | B6: -13 | C6: 20 | E6: 7 | F6: ADORA (T) SC100 8X500ML BOT IN | J6: ADORA (T) SC100 50X100ML BOT IN | K6: -46 | L6: 10 | N6: -36
A7: ALIETTE 40X100GR | C7: 4 | E7: 4 | F7: ALIETTE WP80 40X100GR BAG IN | J7: ADORA (T) SC100 8X500ML BOT IN | K7: -13 | L7: 20 | N7: 7
A8: ANTRACOL 10X1 KG | B8: 255 | C8: 250 | D8: 14 | E8: 491 | F8: ANTRACOL (T) WP70 10X1KG BAG IN | J8: ALIETTE WP80 40X100GR BAG IN | L8: 4 | N8: 4
A9: ANTRACOL 40X250 GR | B9: 156 | C9: 250 | E9: 406 | F9: ANTRACOL (T) WP70 40X250GR BAG IN | J9: ANTRACOL (T) WP70 10X1KG BAG IN | K9: 255 | L9: 250 | M9: 14 | N9: 491
A10: ANTRACOL WP 70 20X500GM | B10: 520 | C10: 300 | D10: 15 | E10: 805 | F10: ANTRACOL (T) WP70 20X500GR BAG IN | J10: ANTRACOL (T) WP70 20X500GR BAG IN | K10: 520 | L10: 300 | M10: 15 | N10: 805
A11: ARIZE 6444 GOLD 10X3 KG | C11: 4500 | D11: 4152.5 | E11: 347.5 | F11: ARIZE AZ 8433 DT LOC 10X3KG BAG IN | J11: ANTRACOL (T) WP70 40X250GR BAG IN | K11: 156 | L11: 250 | N11: 406
A12: ARIZE AZ 8433 10X3 KG | B12: -300 | C12: 6420 | D12: 3875 | E12: 2245 | F12: ARIZE AZ 8433 DT LOC 10X3KG BAG IN | J12: ARIZE AZ 8433 DT (LOC) 6X5KG BAG IN | L12: 300 | N12: 300
A13: ARIZE AZ 8433 6X5 KG | C13: 300 | E13: 300 | F13: ARIZE AZ 8433 DT (LOC) 6X5KG BAG IN | J13: ARIZE AZ 8433 DT LOC 10X3KG BAG IN | K13: -300 | L13: 10920 | M13: 8027.5 | N13: 2592.5
A14: DECIS 40X250ML | C14: 20 | E14: 20 | F14: DECIS EC 28 40X250ML BOT IN | J14: DECIS EC 28 40X250ML BOT IN | L14: 20 | N14: 20
A15: DECIS 50X100ML | C15: 10 | E15: 10 | F15: DECIS EC 28 50X100ML BOT IN | J15: DECIS EC 28 50X100ML BOT IN | L15: 10 | N15: 10
A16: GAUCHO 50X100ML | C16: 5 | D16: 5 | F16: GAUCHO FS600 50X100ML BOT IN | J16: GAUCHO FS600 100X50ML BOT IN | L16: 15 | M16: 15
A17: GAUCHO FS600 100X50ML | C17: 15 | D17: 15 | F17: GAUCHO FS600 100X50ML BOT IN | J17: GAUCHO FS600 50X100ML BOT IN | L17: 5 | M17: 5
A18: LARVIN 20X500 ML | C18: 20 | E18: 20 | F18: LARVIN (T) WP75 20X500GR BAG IN | J18: LARVIN (T) WP75 20X250GR BAG IN | L18: 25 | N18: 25
A19: LARVIN WP75 20X250 GR | C19: 25 | E19: 25 | F19: LARVIN (T) WP75 20X250GR BAG IN | J19: LARVIN (T) WP75 20X500GR BAG IN | L19: 20 | N19: 20
A20: NATIVO 100X50 BAG | F20: NATIVO WG75 100X50GR BAG IN | J20: NATIVO WG75 100X50GR BAG IN
A21: REGENT SC50 20X250ML | B21: 5 | C21: 5 | D21: 5 | E21: 5 | F21: REGENT (T) SC50 20X250ML BOT IN | J21: REGENT (T) SC50 20X250ML BOT IN | K21: 5 | L21: 5 | M21: 5 | N21: 5
A22: REGENT SC 50X100 ML | B22: 1 | C22: 10 | D22: 1 | E22: 10 | F22: REGENT (T) SC50 50X100ML BOT IN | J22: REGENT (T) SC50 50X100ML BOT IN | K22: 1 | L22: 10 | M22: 1 | N22: 10
A23: WHIPSUPER 10X1 LTR | B23: 2 | C23: 200 | D23: 2 | E23: 200 | F23: WHIPSUPER (T) EC90 10X1L BOT IN | J23: WHIPSUPER (T) EC90 10X1L BOT IN | K23: 2 | L23: 200 | M23: 2 | N23: 200
A24: WHIPSUPER 20X500 ML | B24: -17 | C24: 150 | E24: 133 | F24: WHIPSUPER (T) EC90 20X500ML BOT IN | J24: WHIPSUPER (T) EC90 20X500ML BOT IN | K24: -17 | L24: 150 | N24: 133
A25: WHIPSUPER 50X100 ML | C25: 25 | E25: 25 | F25: WHIPSUPER (T) EC90 50X100ML BOT IN | J25: WHIPSUPER (T) EC90 40X250ML BOT IN | K25: 30 | L25: 20 | M25: 30 | N25: 20
A26: WHIPSUPER T EC90 40X250ML | B26: 30 | C26: 20 | D26: 30 | E26: 20 | F26: WHIPSUPER (T) EC90 40X250ML BOT IN | J26: WHIPSUPER (T) EC90 50X100ML BOT IN | L26: 25 | N26: 25
J27: Grand Total | K27: 530 | L27: 12589 | M27: 8114.5 | N27: 5004.5

Sheet Master
A1: Item Details | B1: Master Name
A2: ADMIRE WG70 125X(8X2)GR | B2: ADMIRE WG70 125X(8X2GR) BAG IN
A3: ADORA 20X200 ML | B3: ADORA (T) SC100 20X200ML BOT IN
A4: ADORA 4X1 LTR | B4: ADORA (T) SC100 4X1L BOT IN
A5: ADORA 50X100 ML | B5: ADORA (T) SC100 50X100ML BOT IN
A6: ADORA 8X500 ML | B6: ADORA (T) SC100 8X500ML BOT IN
A7: ALIETTE 40X100GR | B7: ALIETTE WP80 40X100GR BAG IN
A8: ANTRACOL 10X1 KG | B8: ANTRACOL (T) WP70 10X1KG BAG IN
A9: ANTRACOL 40X250 GR | B9: ANTRACOL (T) WP70 40X250GR BAG IN
A10: ANTRACOL WP 70 20X500GM | B10: ANTRACOL (T) WP70 20X500GR BAG IN
A11: ARIZE 6444 GOLD 10X3 KG | B11: ARIZE AZ 8433 DT LOC 10X3KG BAG IN
A12: ARIZE AZ 8433 10X3 KG | B12: ARIZE AZ 8433 DT LOC 10X3KG BAG IN
A13: ARIZE AZ 8433 6X5 KG | B13: ARIZE AZ 8433 DT (LOC) 6X5KG BAG IN
A14: DECIS 40X250ML | B14: DECIS EC 28 40X250ML BOT IN
A15: DECIS 50X100ML | B15: DECIS EC 28 50X100ML BOT IN
A16: GAUCHO 50X100ML | B16: GAUCHO FS600 50X100ML BOT IN
A17: GAUCHO FS600 100X50ML | B17: GAUCHO FS600 100X50ML BOT IN
A18: LARVIN 20X500 ML | B18: LARVIN (T) WP75 20X500GR BAG IN
A19: LARVIN WP75 20X250 GR | B19: LARVIN (T) WP75 20X250GR BAG IN
A20: NATIVO 100X50 BAG | B20: NATIVO WG75 100X50GR BAG IN
A21: REGENT SC50 20X250ML | B21: REGENT (T) SC50 20X250ML BOT IN
A22: REGENT SC 50X100 ML | B22: REGENT (T) SC50 50X100ML BOT IN
A23: WHIPSUPER 10X1 LTR | B23: WHIPSUPER (T) EC90 10X1L BOT IN
A24: WHIPSUPER 20X500 ML | B24: WHIPSUPER (T) EC90 20X500ML BOT IN
A25: WHIPSUPER 50X100 ML | B25: WHIPSUPER (T) EC90 50X100ML BOT IN
A26: WHIPSUPER T EC90 40X250ML | B26: WHIPSUPER (T) EC90 40X250ML BOT IN

Sheet Final Dealer Work
B2: PRODUCT | C2: ITEMALIAS | D2: Bpc | E2: Volume | F2: Opening Qty | G2: Purchase Qty | H2: Purchase Return Qty | I2: Sales Qty | J2: Sales Return Qty | K2: Transfer Qty | L2: Consignment Qty | M2: Adjustment Qty | N2: CLSG
B3: ADMIRE WG70 125X(8X2GR) BAG IN | F3: 0 | G3: 2 | H3: 0 | I3: 0 | J3: 0 | K3: 0 | L3: 0 | M3: 0 | N3: 2
B4: ADORA (T) SC100 20X200ML BOT IN | F4: -43 | G4: 20 | H4: 0 | I4: 0 | J4: 0 | K4: 0 | L4: 0 | M4: 0 | N4: -23
B5: ADORA (T) SC100 4X1L BOT IN | F5: -20 | G5: 8 | H5: 0 | I5: 0 | J5: 0 | K5: 0 | L5: 0 | M5: 0 | N5: -12
B6: ADORA (T) SC100 50X100ML BOT IN | F6: -46 | G6: 10 | H6: 0 | I6: 0 | J6: 0 | K6: 0 | L6: 0 | M6: 0 | N6: -36
B7: ADORA (T) SC100 8X500ML BOT IN | F7: -13 | G7: 20 | H7: 0 | I7: 0 | J7: 0 | K7: 0 | L7: 0 | M7: 0 | N7: 7
B8: ALIETTE WP80 40X100GR BAG IN | F8: 0 | G8: 4 | H8: 0 | I8: 0 | J8: 0 | K8: 0 | L8: 0 | M8: 0 | N8: 4
B9: ANTRACOL (T) WP70 10X1KG BAG IN | F9: 255 | G9: 250 | H9: 0 | I9: 14 | J9: 0 | K9: 0 | L9: 0 | M9: 0 | N9: 491
B10: ANTRACOL (T) WP70 20X500GR BAG IN | F10: 520 | G10: 300 | H10: 0 | I10: 15 | J10: 0 | K10: 0 | L10: 0 | M10: 0 | N10: 805
B11: ANTRACOL (T) WP70 40X250GR BAG IN | F11: 156 | G11: 250 | H11: 0 | I11: 0 | J11: 0 | K11: 0 | L11: 0 | M11: 0 | N11: 406
B12: ARIZE AZ 8433 DT (LOC) 6X5KG BAG IN | F12: 0 | G12: 300 | H12: 0 | I12: 0 | J12: 0 | K12: 0 | L12: 0 | M12: 0 | N12: 300
B13: ARIZE AZ 8433 DT LOC 10X3KG BAG IN | F13: -300 | G13: 10920 | H13: 0 | I13: 8027.5 | J13: 0 | K13: 0 | L13: 0 | M13: 0 | N13: 2592.5
B14: DECIS EC 28 40X250ML BOT IN | F14: 0 | G14: 20 | H14: 0 | I14: 0 | J14: 0 | K14: 0 | L14: 0 | M14: 0 | N14: 20
B15: DECIS EC 28 50X100ML BOT IN | F15: 0 | G15: 10 | H15: 0 | I15: 0 | J15: 0 | K15: 0 | L15: 0 | M15: 0 | N15: 10
B16: GAUCHO FS600 100X50ML BOT IN | F16: 0 | G16: 15 | H16: 0 | I16: 15 | J16: 0 | K16: 0 | L16: 0 | M16: 0 | N16: 0
B17: GAUCHO FS600 50X100ML BOT IN | F17: 0 | G17: 5 | H17: 0 | I17: 5 | J17: 0 | K17: 0 | L17: 0 | M17: 0 | N17: 0
B18: LARVIN (T) WP75 20X250GR BAG IN | F18: 0 | G18: 25 | H18: 0 | I18: 0 | J18: 0 | K18: 0 | L18: 0 | M18: 0 | N18: 25
B19: LARVIN (T) WP75 20X500GR BAG IN | F19: 0 | G19: 20 | H19: 0 | I19: 0 | J19: 0 | K19: 0 | L19: 0 | M19: 0 | N19: 20
B20: NATIVO WG75 100X50GR BAG IN | F20: 0 | G20: 0 | H20: 0 | I20: 0 | J20: 0 | K20: 0 | L20: 0 | M20: 0 | N20: 0
B21: REGENT (T) SC50 20X250ML BOT IN | F21: 5 | G21: 5 | H21: 0 | I21: 5 | J21: 0 | K21: 0 | L21: 0 | M21: 0 | N21: 5
B22: REGENT (T) SC50 50X100ML BOT IN | F22: 1 | G22: 10 | H22: 0 | I22: 1 | J22: 0 | K22: 0 | L22: 0 | M22: 0 | N22: 10
B23: WHIPSUPER (T) EC90 10X1L BOT IN | F23: 2 | G23: 200 | H23: 0 | I23: 2 | J23: 0 | K23: 0 | L23: 0 | M23: 0 | N23: 200
B24: WHIPSUPER (T) EC90 20X500ML BOT IN | F24: -17 | G24: 150 | H24: 0 | I24: 0 | J24: 0 | K24: 0 | L24: 0 | M24: 0 | N24: 133
B25: WHIPSUPER (T) EC90 40X250ML BOT IN | F25: 30 | G25: 20 | H25: 0 | I25: 30 | J25: 0 | K25: 0 | L25: 0 | M25: 0 | N25: 20
B26: WHIPSUPER (T) EC90 50X100ML BOT IN | F26: 0 | G26: 25 | H26: 0 | I26: 0 | J26: 0 | K26: 0 | L26: 0 | M26: 0 | N26: 25
B27: Grand Total | F27: 530 | G27: 12589 | H27: 0 | I27: 8114.5 | J27: 0 | K27: 0 | L27: 0 | M27: 0 | N27: 5004.5

Sheet Zylem SNS Report
A2: Company Name:-BAYER
A3: Stock and Sales FOR THE PERIOD 01-Apr-2021 TO 31-Jul-2021
A4: Generated on 8/18/2021 6:26:56 AM
A5: DISTRIBUTOR PRODUCTWISE
A6: OUTPUT IN : PIC,DETAILS AS : Column,CONSIDER : Voucher Date,INCLUDE VALIDATION : False
A7: DISTRIBUTOR:Sunil Krishi Kendra,
A8: DISTRIBUTOR | B8: SAPCODE | C8: PRODUCT | D8: ITEMALIAS | E8: Opening Qty | F8: Purchase Qty | G8: Purchase Return Qty | H8: Sales Qty | I8: Sales Return Qty | J8: Transfer Qty | K8: Consignment Qty | L8: Adjustment Qty | M8: CLSG
A9: Sunil Krishi Kendra | B9: 3925954 | C9: ADMIRE WG70 125X(8X2GR) BAG IN | D9: 6101665 | E9: 0 | F9: 2 | G9: 0 | H9: 0 | I9: 0 | J9: 0 | K9: 0 | L9: 0 | M9: 2
A10: Sunil Krishi Kendra | B10: 3925954 | C10: ADORA (T) SC100 20X200ML BOT IN | D10: 79997752 | E10: -43 | F10: 20 | G10: 0 | H10: 0 | I10: 0 | J10: 0 | K10: 0 | L10: 0 | M10: -23
A11: Sunil Krishi Kendra | B11: 3925954 | C11: ADORA (T) SC100 4X1L BOT IN | D11: 80048807 | E11: -20 | F11: 8 | G11: 0 | H11: 0 | I11: 0 | J11: 0 | K11: 0 | L11: 0 | M11: -12
A12: Sunil Krishi Kendra | B12: 3925954 | C12: ADORA (T) SC100 50X100ML BOT IN | D12: 84399086 | E12: -46 | F12: 10 | G12: 0 | H12: 0 | I12: 0 | J12: 0 | K12: 0 | L12: 0 | M12: -36
A13: Sunil Krishi Kendra | B13: 3925954 | C13: ADORA (T) SC100 8X500ML BOT IN | D13: 79981201 | E13: -13 | F13: 20 | G13: 0 | H13: 0 | I13: 0 | J13: 0 | K13: 0 | L13: 0 | M13: 7
A14: Sunil Krishi Kendra | B14: 3925954 | C14: ALIETTE WP80 40X100GR BAG IN | D14: 3822331 | E14: 0 | F14: 4 | G14: 0 | H14: 0 | I14: 0 | J14: 0 | K14: 0 | L14: 0 | M14: 4
A15: Sunil Krishi Kendra | B15: 3925954 | C15: ANTRACOL (T) WP70 10X1KG BAG IN | D15: 6077322 | E15: 255 | F15: 250 | G15: 0 | H15: 14 | I15: 0 | J15: 0 | K15: 0 | L15: 0 | M15: 491
A16: Sunil Krishi Kendra | B16: 3925954 | C16: ANTRACOL (T) WP70 20X500GR BAG IN | D16: 5999978 | E16: 520 | F16: 300 | G16: 0 | H16: 15 | I16: 0 | J16: 0 | K16: 0 | L16: 0 | M16: 805
A17: Sunil Krishi Kendra | B17: 3925954 | C17: ANTRACOL (T) WP70 40X250GR BAG IN | D17: 6112179 | E17: 156 | F17: 250 | G17: 0 | H17: 0 | I17: 0 | J17: 0 | K17: 0 | L17: 0 | M17: 406
A18: Sunil Krishi Kendra | B18: 3925954 | C18: ARIZE AZ 8433 DT LOC 10X3KG BAG IN | D18: 85363271 | E18: -300 | F18: 10920 | G18: 0 | H18: 8027.5 | I18: 0 | J18: 0 | K18: 0 | L18: 0 | M18: 2592.5
A19: Sunil Krishi Kendra | B19: 3925954 | C19: DECIS EC 28 40X250ML BOT IN | D19: 3823346 | E19: 0 | F19: 20 | G19: 0 | H19: 0 | I19: 0 | J19: 0 | K19: 0 | L19: 0 | M19: 20
A20: Sunil Krishi Kendra | B20: 3925954 | C20: GAUCHO FS600 100X50ML BOT IN | D20: 80034733 | E20: 0 | F20: 15 | G20: 0 | H20: 15 | I20: 0 | J20: 0 | K20: 0 | L20: 0 | M20: 0
A21: Sunil Krishi Kendra | B21: 3925954 | C21: GAUCHO FS600 50X100ML BOT IN | D21: 79664141 | E21: 0 | F21: 5 | G21: 0 | H21: 5 | I21: 0 | J21: 0 | K21: 0 | L21: 0 | M21: 0
A22: Sunil Krishi Kendra | B22: 3925954 | C22: LARVIN (T) WP75 20X250GR BAG IN | D22: 6003167 | E22: 0 | F22: 25 | G22: 0 | H22: 0 | I22: 0 | J22: 0 | K22: 0 | L22: 0 | M22: 25
A23: Sunil Krishi Kendra | B23: 3925954 | C23: LARVIN (T) WP75 20X500GR BAG IN | D23: 6005291 | E23: 0 | F23: 20 | G23: 0 | H23: 0 | I23: 0 | J23: 0 | K23: 0 | L23: 0 | M23: 20
A24: Sunil Krishi Kendra | B24: 3925954 | C24: REGENT (T) SC50 20X250ML BOT IN | D24: 5976951 | E24: 5 | F24: 5 | G24: 0 | H24: 5 | I24: 0 | J24: 0 | K24: 0 | L24: 0 | M24: 5
A25: Sunil Krishi Kendra | B25: 3925954 | C25: REGENT (T) SC50 50X100ML BOT IN | D25: 5975343 | E25: 1 | F25: 10 | G25: 0 | H25: 1 | I25: 0 | J25: 0 | K25: 0 | L25: 0 | M25: 10
A26: Sunil Krishi Kendra | B26: 3925954 | C26: WHIPSUPER (T) EC90 10X1L BOT IN | D26: 5972697 | E26: 2 | F26: 200 | G26: 0 | H26: 2 | I26: 0 | J26: 0 | K26: 0 | L26: 0 | M26: 200
A27: Sunil Krishi Kendra | B27: 3925954 | C27: WHIPSUPER (T) EC90 20X500ML BOT IN | D27: 5955989 | E27: -17 | F27: 150 | G27: 0 | H27: 0 | I27: 0 | J27: 0 | K27: 0 | L27: 0 | M27: 133
A28: Sunil Krishi Kendra | B28: 3925954 | C28: WHIPSUPER (T) EC90 40X250ML BOT IN | D28: 5966131 | E28: 30 | F28: 20 | G28: 0 | H28: 30 | I28: 0 | J28: 0 | K28: 0 | L28: 0 | M28: 20
A29: Sunil Krishi Kendra | B29: 3925954 | C29: WHIPSUPER (T) EC90 50X100ML BOT IN | D29: 5994151 | E29: 0 | F29: 25 | G29: 0 | H29: 0 | I29: 0 | J29: 0 | K29: 0 | L29: 0 | M29: 25
A30: Sunil Krishi Kendra | B30: 3925954 | C30: DECIS EC 28 50X100ML BOT IN | D30: 3823311 | E30: 0 | F30: 10 | G30: 0 | H30: 0 | I30: 0 | J30: 0 | K30: 0 | L30: 0 | M30: 10
A31: Sunil Krishi Kendra | B31: 3925954 | C31: ARIZE AZ 8433 DT (LOC) 6X5KG BAG IN | D31: 86924617 | E31: 0 | F31: 300 | G31: 0 | H31: 0 | I31: 0 | J31: 0 | K31: 0 | L31: 0 | M31: 300
A32: GRANDTOTAL | E32: 530 | F32: 12589 | G32: 0 | H32: 8114.5 | I32: 0 | J32: 0 | K32: 0 | L32: 0 | M32: 5004.5

Sheet OPG
A1: ADMIRE WG70 125X(8X2GR) BAG IN | B1: =VLOOKUP(A1,'[3]Product Master Sheet'!$B$2:$F$1506,5,0) -> 16 | C1: 0
A2: ADORA (T) SC100 20X200ML BOT IN | B2: =VLOOKUP(A2,'[3]Product Master Sheet'!$B$2:$F$1506,5,0) -> 19 | C2: -43
A3: ADORA (T) SC100 4X1L BOT IN | B3: =VLOOKUP(A3,'[3]Product Master Sheet'!$B$2:$F$1506,5,0) -> 20 | C3: -20
A4: ADORA (T) SC100 50X100ML BOT IN | B4: =VLOOKUP(A4,'[3]Product Master Sheet'!$B$2:$F$1506,5,0) -> 21 | C4: -46
A5: ADORA (T) SC100 8X500ML BOT IN | B5: =VLOOKUP(A5,'[3]Product Master Sheet'!$B$2:$F$1506,5,0) -> 23 | C5: -13
A6: ALIETTE WP80 40X100GR BAG IN | B6: =VLOOKUP(A6,'[3]Product Master Sheet'!$B$2:$F$1506,5,0) -> 35 | C6: 0
A7: ANTRACOL (T) WP70 10X1KG BAG IN | B7: =VLOOKUP(A7,'[3]Product Master Sheet'!$B$2:$F$1506,5,0) -> 42 | C7: 255
A8: ANTRACOL (T) WP70 20X500GR BAG IN | B8: =VLOOKUP(A8,'[3]Product Master Sheet'!$B$2:$F$1506,5,0) -> 43 | C8: 520
A9: ANTRACOL (T) WP70 40X250GR BAG IN | B9: =VLOOKUP(A9,'[3]Product Master Sheet'!$B$2:$F$1506,5,0) -> 44 | C9: 156
A10: ARIZE AZ 8433 DT LOC 10X3KG BAG IN | B10: =VLOOKUP(A10,'[3]Product Master Sheet'!$B$2:$F$1506,5,0) -> 76 | C10: -300
A11: DECIS EC 28 40X250ML BOT IN | B11: =VLOOKUP(A11,'[3]Product Master Sheet'!$B$2:$F$1506,5,0) -> 126 | C11: 0
A12: GAUCHO FS600 100X50ML BOT IN | B12: =VLOOKUP(A12,'[3]Product Master Sheet'!$B$2:$F$1506,5,0) -> 179 | C12: 0
A13: GAUCHO FS600 50X100ML BOT IN | B13: =VLOOKUP(A13,'[3]Product Master Sheet'!$B$2:$F$1506,5,0) -> 182 | C13: 0
A14: LARVIN (T) WP75 20X250GR BAG IN | B14: =VLOOKUP(A14,'[3]Product Master Sheet'!$B$2:$F$1506,5,0) -> 205 | C14: 0
A15: LARVIN (T) WP75 20X500GR BAG IN | B15: =VLOOKUP(A15,'[3]Product Master Sheet'!$B$2:$F$1506,5,0) -> 206 | C15: 0
A16: REGENT (T) SC50 20X250ML BOT IN | B16: =VLOOKUP(A16,'[3]Product Master Sheet'!$B$2:$F$1506,5,0) -> 325 | C16: 5
A17: REGENT (T) SC50 50X100ML BOT IN | B17: =VLOOKUP(A17,'[3]Product Master Sheet'!$B$2:$F$1506,5,0) -> 327 | C17: 1
A18: WHIPSUPER (T) EC90 10X1L BOT IN | B18: =VLOOKUP(A18,'[3]Product Master Sheet'!$B$2:$F$1506,5,0) -> 403 | C18: 2
A19: WHIPSUPER (T) EC90 20X500ML BOT IN | B19: =VLOOKUP(A19,'[3]Product Master Sheet'!$B$2:$F$1506,5,0) -> 404 | C19: -17
A20: WHIPSUPER (T) EC90 50X100ML BOT IN | B20: =VLOOKUP(A20,'[3]Product Master Sheet'!$B$2:$F$1506,5,0) -> 406 | C20: 0
A21: DECIS EC 28 50X100ML BOT IN | B21: =VLOOKUP(A21,'[3]Product Master Sheet'!$B$2:$F$1506,5,0) -> 928 | C21: 0
A22: ARIZE AZ 8433 DT (LOC) 6X5KG BAG IN | B22: =VLOOKUP(A22,'[3]Product Master Sheet'!$B$2:$F$1506,5,0) -> 1796 | C22: 0
A23: NATIVO WG75 100X50GR BAG IN | B23: =VLOOKUP(A23,'[3]Product Master Sheet'!$B$2:$F$1506,5,0) -> 289 | C23: 0
A24: WHIPSUPER (T) EC90 40X250ML BOT IN | B24: =VLOOKUP(A24,'[3]Product Master Sheet'!$B$2:$F$1506,5,0) -> 405 | C24: 30

Sheet Reco
B1: Zylem Report -01-Apr-2021 TO 31-Jul-2021 | K1: Dealer Report -01-Apr-2021 TO 31-Jul-2021 | T1: Difference (+/-)
A3: DEALER CODE | B3: Opening Qty | C3: Purchase Qty | D3: Purchase Return Qty | E3: Sales Qty | F3: Sales Return Qty | G3: Transfer Qty | H3: Consignment Qty | I3: Adjustment Qty | J3: CLSG | K3: Opening Qty | L3: Purchase Qty | M3: Purchase Return Qty | N3: Sales Qty | O3: Sales Return Qty | P3: Transfer Qty | Q3: Consignment Qty | R3: Adjustment Qty | S3: CLSG | T3: Opening Stock Qty | U3: Purchase Qty | V3: Purchase Return Qty | W3: Sales Qty | X3: Sales Return Qty | Y3: Transfer Qty | Z3: Consignment Qty | AA3: Adjustments Qty | AB3: CLSG | AC3: Remark
A4: ADMIRE WG70 125X(8X2GR) BAG IN | B4: 0 | C4: 2 | D4: 0 | E4: 0 | F4: 0 | G4: 0 | H4: 0 | I4: 0 | J4: 2 | K4: 0 | L4: 2 | M4: 0 | N4: 0 | O4: 0 | P4: 0 | Q4: 0 | R4: 0 | S4: 2 | T4: 0 | U4: 0 | V4: 0 | W4: 0 | X4: 0 | Y4: 0 | Z4: 0 | AA4: 0 | AB4: 0 | AC4: Ok
A5: ADORA (T) SC100 20X200ML BOT IN | B5: -43 | C5: 20 | D5: 0 | E5: 0 | F5: 0 | G5: 0 | H5: 0 | I5: 0 | J5: -23 | K5: -43 | L5: 20 | M5: 0 | N5: 0 | O5: 0 | P5: 0 | Q5: 0 | R5: 0 | S5: -23 | T5: 0 | U5: 0 | V5: 0 | W5: 0 | X5: 0 | Y5: 0 | Z5: 0 | AA5: 0 | AB5: 0 | AC5: Ok
A6: ADORA (T) SC100 4X1L BOT IN | B6: -20 | C6: 8 | D6: 0 | E6: 0 | F6: 0 | G6: 0 | H6: 0 | I6: 0 | J6: -12 | K6: -20 | L6: 8 | M6: 0 | N6: 0 | O6: 0 | P6: 0 | Q6: 0 | R6: 0 | S6: -12 | T6: 0 | U6: 0 | V6: 0 | W6: 0 | X6: 0 | Y6: 0 | Z6: 0 | AA6: 0 | AB6: 0 | AC6: Ok
A7: ADORA (T) SC100 50X100ML BOT IN | B7: -46 | C7: 10 | D7: 0 | E7: 0 | F7: 0 | G7: 0 | H7: 0 | I7: 0 | J7: -36 | K7: -46 | L7: 10 | M7: 0 | N7: 0 | O7: 0 | P7: 0 | Q7: 0 | R7: 0 | S7: -36 | T7: 0 | U7: 0 | V7: 0 | W7: 0 | X7: 0 | Y7: 0 | Z7: 0 | AA7: 0 | AB7: 0 | AC7: Ok
A8: ADORA (T) SC100 8X500ML BOT IN | B8: -13 | C8: 20 | D8: 0 | E8: 0 | F8: 0 | G8: 0 | H8: 0 | I8: 0 | J8: 7 | K8: -13 | L8: 20 | M8: 0 | N8: 0 | O8: 0 | P8: 0 | Q8: 0 | R8: 0 | S8: 7 | T8: 0 | U8: 0 | V8: 0 | W8: 0 | X8: 0 | Y8: 0 | Z8: 0 | AA8: 0 | AB8: 0 | AC8: Ok
A9: ALIETTE WP80 40X100GR BAG IN | B9: 0 | C9: 4 | D9: 0 | E9: 0 | F9: 0 | G9: 0 | H9: 0 | I9: 0 | J9: 4 | K9: 0 | L9: 4 | M9: 0 | N9: 0 | O9: 0 | P9: 0 | Q9: 0 | R9: 0 | S9: 4 | T9: 0 | U9: 0 | V9: 0 | W9: 0 | X9: 0 | Y9: 0 | Z9: 0 | AA9: 0 | AB9: 0 | AC9: Ok
A10: ANTRACOL (T) WP70 10X1KG BAG IN | B10: 255 | C10: 250 | D10: 0 | E10: 14 | F10: 0 | G10: 0 | H10: 0 | I10: 0 | J10: 491 | K10: 255 | L10: 250 | M10: 0 | N10: 14 | O10: 0 | P10: 0 | Q10: 0 | R10: 0 | S10: 491 | T10: 0 | U10: 0 | V10: 0 | W10: 0 | X10: 0 | Y10: 0 | Z10: 0 | AA10: 0 | AB10: 0 | AC10: Ok
A11: ANTRACOL (T) WP70 20X500GR BAG IN | B11: 520 | C11: 300 | D11: 0 | E11: 15 | F11: 0 | G11: 0 | H11: 0 | I11: 0 | J11: 805 | K11: 520 | L11: 300 | M11: 0 | N11: 15 | O11: 0 | P11: 0 | Q11: 0 | R11: 0 | S11: 805 | T11: 0 | U11: 0 | V11: 0 | W11: 0 | X11: 0 | Y11: 0 | Z11: 0 | AA11: 0 | AB11: 0 | AC11: Ok
A12: ANTRACOL (T) WP70 40X250GR BAG IN | B12: 156 | C12: 250 | D12: 0 | E12: 0 | F12: 0 | G12: 0 | H12: 0 | I12: 0 | J12: 406 | K12: 156 | L12: 250 | M12: 0 | N12: 0 | O12: 0 | P12: 0 | Q12: 0 | R12: 0 | S12: 406 | T12: 0 | U12: 0 | V12: 0 | W12: 0 | X12: 0 | Y12: 0 | Z12: 0 | AA12: 0 | AB12: 0 | AC12: Ok
A13: ARIZE AZ 8433 DT LOC 10X3KG BAG IN | B13: -300 | C13: 10920 | D13: 0 | E13: 8027.5 | F13: 0 | G13: 0 | H13: 0 | I13: 0 | J13: 2592.5 | K13: -300 | L13: 10920 | M13: 0 | N13: 8027.5 | O13: 0 | P13: 0 | Q13: 0 | R13: 0 | S13: 2592.5 | T13: 0 | U13: 0 | V13: 0 | W13: 0 | X13: 0 | Y13: 0 | Z13: 0 | AA13: 0 | AB13: 0 | AC13: Ok
A14: DECIS EC 28 40X250ML BOT IN | B14: 0 | C14: 20 | D14: 0 | E14: 0 | F14: 0 | G14: 0 | H14: 0 | I14: 0 | J14: 20 | K14: 0 | L14: 20 | M14: 0 | N14: 0 | O14: 0 | P14: 0 | Q14: 0 | R14: 0 | S14: 20 | T14: 0 | U14: 0 | V14: 0 | W14: 0 | X14: 0 | Y14: 0 | Z14: 0 | AA14: 0 | AB14: 0 | AC14: Ok
A15: GAUCHO FS600 100X50ML BOT IN | B15: 0 | C15: 15 | D15: 0 | E15: 15 | F15: 0 | G15: 0 | H15: 0 | I15: 0 | J15: 0 | K15: 0 | L15: 15 | M15: 0 | N15: 15 | O15: 0 | P15: 0 | Q15: 0 | R15: 0 | S15: 0 | T15: 0 | U15: 0 | V15: 0 | W15: 0 | X15: 0 | Y15: 0 | Z15: 0 | AA15: 0 | AB15: 0 | AC15: Ok
A16: GAUCHO FS600 50X100ML BOT IN | B16: 0 | C16: 5 | D16: 0 | E16: 5 | F16: 0 | G16: 0 | H16: 0 | I16: 0 | J16: 0 | K16: 0 | L16: 5 | M16: 0 | N16: 5 | O16: 0 | P16: 0 | Q16: 0 | R16: 0 | S16: 0 | T16: 0 | U16: 0 | V16: 0 | W16: 0 | X16: 0 | Y16: 0 | Z16: 0 | AA16: 0 | AB16: 0 | AC16: Ok
A17: LARVIN (T) WP75 20X250GR BAG IN | B17: 0 | C17: 25 | D17: 0 | E17: 0 | F17: 0 | G17: 0 | H17: 0 | I17: 0 | J17: 25 | K17: 0 | L17: 25 | M17: 0 | N17: 0 | O17: 0 | P17: 0 | Q17: 0 | R17: 0 | S17: 25 | T17: 0 | U17: 0 | V17: 0 | W17: 0 | X17: 0 | Y17: 0 | Z17: 0 | AA17: 0 | AB17: 0 | AC17: Ok
A18: LARVIN (T) WP75 20X500GR BAG IN | B18: 0 | C18: 20 | D18: 0 | E18: 0 | F18: 0 | G18: 0 | H18: 0 | I18: 0 | J18: 20 | K18: 0 | L18: 20 | M18: 0 | N18: 0 | O18: 0 | P18: 0 | Q18: 0 | R18: 0 | S18: 20 | T18: 0 | U18: 0 | V18: 0 | W18: 0 | X18: 0 | Y18: 0 | Z18: 0 | AA18: 0 | AB18: 0 | AC18: Ok
A19: REGENT (T) SC50 20X250ML BOT IN | B19: 5 | C19: 5 | D19: 0 | E19: 5 | F19: 0 | G19: 0 | H19: 0 | I19: 0 | J19: 5 | K19: 5 | L19: 5 | M19: 0 | N19: 5 | O19: 0 | P19: 0 | Q19: 0 | R19: 0 | S19: 5 | T19: 0 | U19: 0 | V19: 0 | W19: 0 | X19: 0 | Y19: 0 | Z19: 0 | AA19: 0 | AB19: 0 | AC19: Ok
A20: REGENT (T) SC50 50X100ML BOT IN | B20: 1 | C20: 10 | D20: 0 | E20: 1 | F20: 0 | G20: 0 | H20: 0 | I20: 0 | J20: 10 | K20: 1 | L20: 10 | M20: 0 | N20: 1 | O20: 0 | P20: 0 | Q20: 0 | R20: 0 | S20: 10 | T20: 0 | U20: 0 | V20: 0 | W20: 0 | X20: 0 | Y20: 0 | Z20: 0 | AA20: 0 | AB20: 0 | AC20: Ok
A21: WHIPSUPER (T) EC90 10X1L BOT IN | B21: 2 | C21: 200 | D21: 0 | E21: 2 | F21: 0 | G21: 0 | H21: 0 | I21: 0 | J21: 200 | K21: 2 | L21: 200 | M21: 0 | N21: 2 | O21: 0 | P21: 0 | Q21: 0 | R21: 0 | S21: 200 | T21: 0 | U21: 0 | V21: 0 | W21: 0 | X21: 0 | Y21: 0 | Z21: 0 | AA21: 0 | AB21: 0 | AC21: Ok
A22: WHIPSUPER (T) EC90 20X500ML BOT IN | B22: -17 | C22: 150 | D22: 0 | E22: 0 | F22: 0 | G22: 0 | H22: 0 | I22: 0 | J22: 133 | K22: -17 | L22: 150 | M22: 0 | N22: 0 | O22: 0 | P22: 0 | Q22: 0 | R22: 0 | S22: 133 | T22: 0 | U22: 0 | V22: 0 | W22: 0 | X22: 0 | Y22: 0 | Z22: 0 | AA22: 0 | AB22: 0 | AC22: Ok
A23: WHIPSUPER (T) EC90 40X250ML BOT IN | B23: 30 | C23: 20 | D23: 0 | E23: 30 | F23: 0 | G23: 0 | H23: 0 | I23: 0 | J23: 20 | K23: 30 | L23: 20 | M23: 0 | N23: 30 | O23: 0 | P23: 0 | Q23: 0 | R23: 0 | S23: 20 | T23: 0 | U23: 0 | V23: 0 | W23: 0 | X23: 0 | Y23: 0 | Z23: 0 | AA23: 0 | AB23: 0 | AC23: Ok
A24: WHIPSUPER (T) EC90 50X100ML BOT IN | B24: 0 | C24: 25 | D24: 0 | E24: 0 | F24: 0 | G24: 0 | H24: 0 | I24: 0 | J24: 25 | K24: 0 | L24: 25 | M24: 0 | N24: 0 | O24: 0 | P24: 0 | Q24: 0 | R24: 0 | S24: 25 | T24: 0 | U24: 0 | V24: 0 | W24: 0 | X24: 0 | Y24: 0 | Z24: 0 | AA24: 0 | AB24: 0 | AC24: Ok
A25: DECIS EC 28 50X100ML BOT IN | B25: 0 | C25: 10 | D25: 0 | E25: 0 | F25: 0 | G25: 0 | H25: 0 | I25: 0 | J25: 10 | K25: 0 | L25: 10 | M25: 0 | N25: 0 | O25: 0 | P25: 0 | Q25: 0 | R25: 0 | S25: 10 | T25: 0 | U25: 0 | V25: 0 | W25: 0 | X25: 0 | Y25: 0 | Z25: 0 | AA25: 0 | AB25: 0 | AC25: Ok
A26: ARIZE AZ 8433 DT (LOC) 6X5KG BAG IN | B26: 0 | C26: 300 | D26: 0 | E26: 0 | F26: 0 | G26: 0 | H26: 0 | I26: 0 | J26: 300 | K26: 0 | L26: 300 | M26: 0 | N26: 0 | O26: 0 | P26: 0 | Q26: 0 | R26: 0 | S26: 300 | T26: 0 | U26: 0 | V26: 0 | W26: 0 | X26: 0 | Y26: 0 | Z26: 0 | AA26: 0 | AB26: 0 | AC26: Ok
A27: NATIVO WG75 100X50GR BAG IN | B27: 0 | C27: 0 | D27: 0 | E27: 0 | F27: 0 | G27: 0 | H27: 0 | I27: 0 | J27: 0 | K27: 0 | L27: 0 | M27: 0 | N27: 0 | O27: 0 | P27: 0 | Q27: 0 | R27: 0 | S27: 0 | T27: 0 | U27: 0 | V27: 0 | W27: 0 | X27: 0 | Y27: 0 | Z27: 0 | AA27: 0 | AB27: 0 | AC27: Ok
A28: Total | B28: 530 | C28: 12589 | D28: 0 | E28: 8114.5 | F28: 0 | G28: 0 | H28: 0 | I28: 0 | J28: 5004.5 | K28: 530 | L28: 12589 | M28: 0 | N28: 8114.5 | O28: 0 | P28: 0 | Q28: 0 | R28: 0 | S28: 5004.5 | T28: 0 | U28: 0 | V28: 0 | W28: 0 | X28: 0 | Y28: 0 | Z28: 0 | AA28: 0 | AB28: 0
